bitfinex/quotes_ETHUSD_20240828
["timestamp","ask_amount","ask_price","bid_price","bid_amount"]
[1724869759198,8.01581802,2526.3,2525.8,4.50913]
[1724869759418,3.95851,2526.2,2525.8,0.55]
[1724869759727,0.09896799,2526.2,2525.9,0.07457976]
[1724869761425,4.05755799,2526.2,2525.9,0.07457976]
[1724869761925,5.09566079,2526.2,2525.9,0.07457976]
[1724869762095,3.95882,2526.0,2525.9,0.07457976]
[1724869762532,10.41284,2526.0,2525.9,0.07457976]
[1724869762828,3.95936,2525.7,2525.3,7.41]
[1724869762983,3.95936,2525.7,2525.2,3.96]
[1724869763187,3.95936,2525.7,2525.3,3.95992]
[1724869763388,0.09898763,2525.8,2525.3,7.91984]
[1724869763617,0.09898763,2525.8,2525.4,3.95972]
[1724869763787,0.09898763,2525.8,2525.5,3.9595]
[1724869763989,3.95878,2526.1,2525.6,4.50937]
[1724869764209,4.05775733,2526.1,2525.7,3.95928]
[1724869764519,4.0574942,2526.2,2525.7,3.95929]
[1724869765084,3.95868,2526.1,2525.6,4.50937]
[1724869765335,0.09897537,2526.0,2525.6,4.50937]
[1724869765486,3.95868,2526.1,2525.6,4.50937]
[1724869765824,3.95868,2526.1,2525.6,5.41822192]
[1724869766001,0.09897268,2526.0,2525.6,4.50937]
[1724869766202,3.95868,2526.1,2525.6,4.50937]
[1724869766534,3.95868,2526.1,2525.6,4.50935]
[1724869766824,0.09897622,2526.0,2525.6,4.50935]
[1724869767025,3.95901,2525.9,2525.4,8.5388092]
[1724869767528,3.95901,2525.9,2525.5,3.9596]
[1724869768518,0.09897622,2526.0,2525.5,3.9596]
[1724869768719,0.09897622,2526.0,2525.5,4.81347292]
[1724869769227,4.05781622,2526.0,2525.5,4.81347292]
[1724869769899,0.09897622,2526.0,2525.6,3.95943]
[1724869770861,0.09897622,2526.0,2525.8,3.95904]
[1724869770987,0.09896862,2526.3,2526.0,3.95873]
[1724869771188,0.09896591,2526.5,2526.2,3.95851]
[1724869771387,2.47135733,2526.6,2526.2,3.95851]
[1724869771625,2.47135733,2526.6,2526.2,7.91686]
[1724869771804,2.47135733,2526.6,2526.2,3.95842]
[1724869772126,2.47135733,2526.6,2526.2,3.9584]
[1724869772333,2.47135733,2526.6,2526.3,3.95834]
[1724869772629,6.42924733,2526.6,2526.2,3.9584]
[1724869773325,2.47135733,2526.6,2526.2,3.9584]
[1724869773911,2.47135733,2526.6,2526.3,3.95834]
[1724869774715,2.47135733,2526.6,2526.4,0.07454649]
[1724869775031,2.47135733,2526.6,2526.2,7.91681]
[1724869775225,2.47135733,2526.6,2526.5,0.07443102]
[1724869775435,2.47135733,2526.6,2526.2,7.91681]
[1724869775620,2.47135733,2526.6,2526.5,0.07424073]
[1724869775818,2.47135733,2526.6,2526.2,7.91681]
[1724869776015,2.47135733,2526.6,2526.5,0.07424073]
[1724869776221,2.47135733,2526.6,2526.2,3.9584]
[1724869776419,2.47135733,2526.6,2526.5,0.0742363]
[1724869776623,2.47135733,2526.6,2526.2,3.9584]
[1724869776840,2.47135733,2526.6,2526.5,0.0742363]
[1724869777134,2.47135733,2526.6,2526.2,3.9584]
[1724869777340,2.47135733,2526.6,2526.5,0.0742363]
[1724869777497,2.47135733,2526.6,2526.2,3.9584]
[1724869777699,2.47135733,2526.6,2526.3,0.07446726]
[1724869779001,2.76871709,2527.0,2526.6,3.9578]
[1724869779338,2.76871709,2527.0,2526.8,3.95748]
[1724869779644,2.3543,2527.3,2526.8,4.03662604]
[1724869779797,2.45323255,2527.3,2527.0,3.95724]
[1724869780223,2.45323255,2527.3,2527.1,0.07348171]
[1724869780603,0.0989282,2527.2,2527.1,0.07348171]
[1724869780948,0.0989282,2527.2,2526.8,3.95748]
[1724869781100,0.0989282,2527.2,2527.1,0.07268993]
[1724869781300,0.0989282,2527.2,2526.8,3.95748]
[1724869781505,0.0989282,2527.2,2526.9,0.55]
[1724869781944,2.45322826,2527.3,2527.0,4.03003535]
[1724869782118,2.45322826,2527.3,2527.0,0.07280535]
[1724869782305,0.0989282,2527.2,2527.0,0.07280535]
[1724869783004,2.4532282,2527.3,2527.0,0.07280535]
[1724869784058,2.4532282,2527.3,2527.0,4.03004535]
[1724869784238,2.3543,2527.3,2527.0,4.03004535]
[1724869784763,4.05556823,2527.4,2527.0,0.07280535]
[1724869784978,2.3543,2527.3,2527.0,0.07280535]
[1724869785264,2.3543,2527.3,2527.0,4.03005535]
[1724869786027,4.05557823,2527.4,2527.0,4.03005535]
[1724869786226,0.09892818,2527.3,2527.0,4.03005535]
[1724869786658,3.0,2527.8,2527.0,4.03005535]
[1724869786659,9.31039,2527.8,2527.1,4.03624254]
[1724869786970,9.31039,2527.8,2527.2,3.95693]
[1724869787173,5.3543,2527.8,2527.4,3.95661]
[1724869787470,4.37016497,2527.9,2527.4,3.95661]
[1724869787669,4.37016497,2527.9,2527.5,0.07219297]
[1724869788075,4.37016497,2527.9,2527.2,3.9568]
[1724869788076,4.37016497,2527.9,2527.3,3.95671]
[1724869788313,0.41427497,2527.9,2527.6,0.07207759]
[1724869788563,4.46916358,2527.9,2527.3,3.95678]
[1724869788765,4.2328775,2527.8,2527.2,3.95691]
[1724869788969,0.47460611,2527.7,2527.3,0.55]
[1724869789128,0.37576719,2527.8,2527.3,0.55]
[1724869789775,0.37576719,2527.8,2527.4,0.06990961]
[1724869790129,0.2768575,2527.8,2527.4,4.02651961]
[1724869790368,0.2768575,2527.8,2527.4,0.06990961]
[1724869791074,0.2768575,2527.8,2527.2,7.91364]
[1724869791273,4.2328875,2527.8,2527.5,0.06962179]
[1724869791435,0.57351689,2527.7,2527.2,7.91365]
[1724869791643,0.09890968,2527.7,2527.6,0.06950642]
[1724869791877,0.09890968,2527.7,2527.2,3.9568]
[1724869792064,0.09890968,2527.7,2527.6,0.06950642]
[1724869792385,0.09890968,2527.7,2527.2,3.9568]
[1724869792555,0.09890968,2527.7,2527.6,0.06950642]
[1724869792740,8.01124968,2527.7,2527.6,0.06950642]
[1724869792944,7.25193215,2527.7,2527.0,3.95715]
[1724869793147,3.95644,2527.6,2527.1,0.55]
[1724869793385,0.0989141,2527.6,2527.1,4.5071]
[1724869793691,4.0553141,2527.6,2527.1,0.55]
[1724869794352,0.0989141,2527.6,2527.2,0.450715]
[1724869794558,6.40945403,2527.7,2527.1,4.50706]
[1724869796169,6.40945403,2527.7,2527.2,3.95693]
[1724869797061,6.40945403,2527.7,2527.1,0.55]
[1724869797062,3.95632,2527.6,2527.1,0.55]
[1724869797262,4.05523407,2527.6,2527.1,0.55]
[1724869798304,2.3543,2527.5,2527.1,0.55]
[1724869798520,4.05555313,2527.4,2526.9,7.41]
[1724869798797,0.09892313,2527.4,2526.9,12.899807]
[1724869799500,4.05555313,2527.4,2526.9,12.899807]
[1724869799699,4.05555313,2527.4,2526.9,7.41]
[1724869800009,0.09892313,2527.4,2526.9,7.41]
[1724869800303,3.95666,2527.4,2526.9,7.41]
[1724869800506,8.01231313,2527.4,2526.9,7.41]
[1724869800673,4.05558313,2527.4,2526.9,7.41]
[1724869801505,8.01230313,2527.4,2526.9,7.41]
[1724869801708,4.05558313,2527.4,2526.9,7.41]
[1724869802068,8.01231313,2527.4,2526.9,7.41]
[1724869802594,4.05558313,2527.4,2526.9,7.41]
[1724869803006,2.3543,2527.5,2527.0,0.55]
[1724869803411,2.3543,2527.5,2527.1,3.95709]
[1724869804718,3.95668,2527.4,2527.0,0.55]
[1724869804921,3.95668,2527.4,2526.9,12.504146]
[1724869805225,2.3543,2527.5,2527.0,5.2075746]
[1724869805383,6.5515944,2527.8,2527.2,3.95693]
[1724869805741,4.05508992,2527.7,2527.2,3.95693]
[1724869806080,0.09890992,2527.7,2527.0,2.3248]
[1724869806295,0.09890992,2527.7,2526.9,7.41]
[1724869806296,3.95695,2527.2,2526.9,7.41]
[1724869806498,4.05587848,2527.2,2526.7,3.95758]
[1724869806697,0.09892848,2527.2,2526.8,3.95749]
[1724869806925,2.3243,2527.3,2526.8,8.2592016]
[1724869807099,2.3243,2527.3,2526.9,3.95732]
[1724869807303,2.3243,2527.3,2527.0,3.95715]
[1724869807525,6.28074,2527.6,2527.0,3.95715]
[1724869807725,10.23714,2527.6,2527.0,3.95715]
[1724869808041,0.09892064,2527.5,2527.0,3.95715]
[1724869808623,2.3243,2527.6,2527.2,3.9569]
[1724869809416,2.3243,2527.6,2527.1,3.95696]
[1724869809603,2.3243,2527.6,2527.2,0.55]
[1724869809933,6.28064,2527.6,2527.2,0.55]
[1724869810235,0.0989137,2527.5,2526.9,11.36732]
[1724869810397,3.95664,2527.4,2526.9,15.32466]
[1724869810587,3.95664,2527.4,2526.9,18.0716732]
[1724869810984,3.95664,2527.4,2526.9,14.1143432]
[1724869811189,0.0989137,2527.5,2526.9,18.0716632]
[1724869811427,0.0989137,2527.5,2527.1,3.9571]
[1724869812205,0.0989137,2527.5,2527.0,3.95724]
[1724869812406,4.0554437,2527.5,2527.0,3.95724]
[1724869813528,0.0989137,2527.5,2526.9,14.1143432]
[1724869813691,6.3795406,2527.6,2527.1,3.9571]
[1724869813890,7.71311166,2527.6,2527.1,3.9571]
[1724869814306,6.3795406,2527.6,2527.1,7.91413]
[1724869814554,4.37021497,2527.9,2527.4,3.95654]
[1724869814695,2.3243,2527.8,2527.5,3.95639]
[1724869814894,3.95565,2528.1,2527.5,3.95639]
[1724869814895,2.42320407,2528.0,2527.6,4.901879]
[1724869815140,2.3243,2528.0,2527.6,4.50624]
[1724869815495,2.42319753,2528.0,2527.6,8.46247]
[1724869815799,2.42319753,2528.0,2527.6,4.50623]
[1724869816134,6.37888753,2528.0,2527.6,4.50623]
[1724869816338,2.42319753,2528.0,2527.6,4.50623]
[1724869816994,2.42319753,2528.0,2527.7,3.95611]
[1724869817197,4.43635744,2528.7,2527.6,4.50623]
[1724869817198,3.95453,2528.8,2527.8,1.489304]
[1724869817394,3.95453,2528.8,2528.2,3.9553]
[1724869817395,2.3243,2528.7,2528.2,3.9553]
[1724869817635,2.719753,2528.7,2528.4,3.95501]
[1724869817879,2.3243,2528.7,2528.4,3.95501]
[1724869818097,2.3243,2528.7,2528.5,0.06720778]
[1724869818296,2.3243,2529.1,2528.7,3.95458]
[1724869818535,2.4231583,2529.1,2528.7,3.95458]
[1724869818717,0.63769883,2529.0,2528.8,0.06685313]
[1724869819033,0.63769883,2529.0,2528.6,3.95473]
[1724869819343,0.63769883,2529.0,2528.9,0.06643333]
[1724869819646,6.27878,2528.8,2528.1,18.70207457]
[1724869819839,6.27878,2528.8,2528.3,3.9552]
[1724869820202,2.3243,2528.8,2528.3,7.91032]
[1724869820397,2.3243,2528.8,2528.4,3.95492]
[1724869820635,2.3243,2528.8,2528.4,4.50492]
[1724869821661,2.3243,2529.1,2528.5,3.95488]
[1724869821837,2.42316164,2529.1,2528.5,3.95483]
[1724869822166,2.42316164,2529.1,2528.6,0.55]
[1724869822465,6.37716164,2529.1,2528.6,0.55]
[1724869822672,6.37716164,2529.1,2528.6,4.50472]
[1724869822971,2.42316164,2529.1,2528.6,0.55]
[1724869823165,6.37721164,2529.1,2528.6,0.55]
[1724869823680,2.3243,2529.1,2528.6,1.000481]
[1724869823883,3.9539,2529.2,2528.7,7.90902]
[1724869824176,6.51466525,2529.4,2528.7,3.95451]
[1724869824470,10.46830525,2529.4,2528.9,3.95427]
[1724869824948,10.46826525,2529.4,2528.9,3.95427]
[1724869825336,6.51466525,2529.4,2528.8,0.55]
[1724869825665,3.95382,2529.2,2528.8,4.50444]
[1724869825865,2.4623,2529.7,2528.8,0.55]
[1724869826073,2.4623,2529.7,2529.2,3.95381]
[1724869826074,6.51418604,2529.7,2529.2,3.95381]
[1724869826235,2.56113604,2529.7,2529.3,0.395381]
[1724869826435,2.56113604,2529.7,2529.0,7.41]
[1724869826633,3.95336,2529.5,2529.0,7.41]
[1724869826979,6.41627,2529.1,2529.0,7.41]
[1724869827276,6.51512399,2529.1,2528.5,6.95488]
[1724869827434,6.41627,2529.1,2528.5,7.650362]
[1724869827634,6.41627,2529.1,2528.5,0.695482]
[1724869827635,3.95446,2528.8,2528.5,0.695482]
[1724869827887,3.95489,2528.6,2528.0,3.95562]
[1724869828068,3.95489,2528.6,2528.0,3.95561]
[1724869828069,3.95478,2528.6,2528.0,3.95561]
[1724869828244,2.4623,2528.5,2528.0,7.91119]
[1724869828457,2.4623,2528.5,2528.1,1.12924046]
[1724869828971,2.4623,2528.5,2528.2,0.55]
[1724869829545,2.4623,2528.1,2527.6,3.9562]
[1724869829749,2.4623,2528.1,2527.6,7.91243]
[1724869829945,2.4623,2528.1,2527.6,3.9562]
[1724869830146,2.56119261,2528.1,2527.6,3.9562]
[1724869830454,2.56119261,2528.1,2527.6,5.82659646]
[1724869830646,2.4623,2528.1,2527.6,5.82659646]
[1724869830835,2.4623,2528.1,2527.8,3.95599]
[1724869831165,2.4623,2528.4,2528.0,3.95561]
[1724869831382,0.09887969,2528.3,2527.9,0.395599]
[1724869831586,3.95538,2528.2,2527.6,7.33738457]
[1724869831736,3.95538,2528.2,2527.6,12.29836488]
[1724869832057,3.95538,2528.2,2527.7,0.55]
[1724869832247,0.09887969,2528.3,2527.7,0.55]
[1724869832448,4.05418969,2528.3,2527.8,3.956]
[1724869832775,4.05418969,2528.3,2527.7,0.55]
[1724869832945,4.05418969,2528.3,2527.7,2.57582849]
[1724869833153,2.4623,2528.4,2527.9,3.95584]
[1724869833351,2.4623,2528.4,2528.0,4.50561]
[1724869833971,2.4623,2528.4,2528.0,0.55]
[1724869834176,6.54022079,2528.7,2528.1,3.95541]
[1724869834366,3.95477,2528.6,2528.2,0.55]
[1724869834680,2.4867,2528.4,2527.9,7.41]
[1724869834888,2.4867,2528.4,2528.0,0.55]
[1724869835070,3.95542,2528.2,2527.9,7.41]
[1724869835249,4.05417285,2528.3,2527.9,7.41]
[1724869835771,4.05436952,2528.2,2527.9,7.41]
[1724869836003,3.95555,2528.1,2527.9,7.41]
[1724869836281,2.4867,2528.0,2527.9,7.41]
[1724869836439,2.4867,2528.0,2527.6,3.95627]
[1724869836631,2.4867,2528.0,2527.7,0.55]
[1724869836983,6.4424,2528.0,2527.7,0.55]
[1724869837141,6.4424,2528.0,2527.6,0.55]
[1724869837337,6.4424,2528.0,2527.6,4.50623]
[1724869837338,2.4867,2528.0,2527.6,4.50623]
[1724869837639,2.4867,2528.0,2527.7,3.95608]
[1724869837877,6.44202,2528.3,2527.7,3.95607]
[1724869838068,6.44202,2528.3,2527.7,4.57688417]
[1724869838279,0.09889258,2528.2,2527.7,4.57688417]
[1724869838443,4.05441258,2528.2,2527.7,7.91214]
[1724869838640,6.442,2528.3,2527.8,3.95597]
[1724869838951,6.442,2528.3,2527.8,4.802197]
[1724869839274,0.09889109,2528.2,2527.8,3.95597]
[1724869839433,6.442,2528.3,2527.8,3.95597]
[1724869839880,0.09889076,2528.2,2527.8,3.95597]
[1724869840247,2.4867,2528.3,2527.9,3.95572]
[1724869840564,2.4867,2528.3,2528.0,0.55]
[1724869840762,6.44194,2528.3,2528.0,0.55]
[1724869841340,2.4867,2528.3,2528.0,0.55]
[1724869841541,10.18691,2528.5,2528.0,4.50557]
[1724869841778,0.09888247,2528.4,2528.0,4.50557]
[1724869841982,4.05396247,2528.4,2528.0,0.55]
[1724869842184,4.05396247,2528.4,2528.1,0.06716122]
[1724869842348,0.09888247,2528.4,2528.1,0.06716122]
[1724869842553,6.2319,2528.5,2528.1,0.06716122]
[1724869842554,6.33078247,2528.5,2528.1,0.06716122]
[1724869843079,10.28580247,2528.5,2528.1,0.06716122]
[1724869843242,6.33078247,2528.5,2528.1,0.06716122]
[1724869843581,6.2319,2528.5,2528.1,0.06716122]
[1724869844164,0.09888246,2528.4,2528.1,0.06716122]
[1724869844356,3.95538,2528.2,2528.1,0.06716122]
[1724869844574,3.95557,2528.1,2527.6,3.95621]
[1724869844762,3.95557,2528.1,2527.7,0.61762258]
[1724869845466,6.28906,2527.9,2527.7,0.61762258]
[1724869845669,0.09889604,2527.8,2527.7,0.06762258]
[1724869845867,4.05489604,2527.8,2527.7,0.06762258]
[1724869846095,4.05489604,2527.8,2527.2,7.41]
[1724869846096,3.95632,2527.6,2527.2,7.41]
[1724869846298,3.95647,2527.5,2527.0,3.95714]
[1724869846499,6.28967,2527.5,2527.1,1.95183546]
[1724869846720,2.3332,2527.4,2526.8,7.41]
[1724869846859,3.95739,2527.0,2526.8,7.41]
[1724869847203,3.95739,2527.0,2526.4,22.568]
[1724869847204,3.95739,2527.0,2526.5,3.95795]
[1724869847403,3.95739,2527.0,2526.4,26.0199]
[1724869847404,0.09893463,2527.1,2526.6,3.95787]
[1724869847557,4.05605463,2527.1,2526.6,3.95787]
[1724869847757,3.95712,2527.1,2526.6,7.91574]
[1724869847954,3.95712,2527.1,2526.6,3.9578]
[1724869848191,3.957,2527.2,2526.7,4.5077]
[1724869848390,4.05593348,2527.2,2526.7,0.55]
[1724869848612,4.05593348,2527.2,2526.7,4.50772]
[1724869848772,2.3332,2527.4,2526.9,3.95737]
[1724869848971,2.3332,2527.4,2527.0,0.55]
[1724869849172,2.3332,2528.1,2527.1,5.93214918]
[1724869849417,2.3332,2528.1,2527.4,3.38121457]
[1724869849701,6.28883,2528.1,2527.5,3.95638]
[1724869849857,10.873383,2528.1,2527.5,3.95638]
[1724869850056,3.95585,2527.9,2527.4,3.38121457]
[1724869850302,3.95585,2527.9,2527.4,7.33781457]
[1724869851015,0.09890299,2528.0,2527.5,3.95645]
[1724869851188,0.09890299,2528.0,2527.5,3.95637]
[1724869851390,2.3332,2528.1,2527.4,4.51066603]
[1724869851564,2.3332,2528.1,2527.8,3.95591]
[1724869851779,3.95515,2528.4,2527.9,3.95585]
[1724869851780,2.3519,2528.3,2527.9,3.95585]
[1724869852104,2.45079613,2528.3,2527.9,3.95585]
[1724869853819,2.3519,2528.3,2527.9,3.95577]
[1724869854117,3.955,2528.5,2527.9,4.35925869]
[1724869854419,3.95507,2528.4,2527.9,4.35925869]
[1724869854715,3.95507,2528.4,2527.9,3.95576]
[1724869855776,2.3205,2528.6,2528.3,3.95512]
[1724869856007,4.368732,2528.8,2528.4,3.95502]
[1724869856008,2.4785,2528.8,2528.4,3.95502]
[1724869856425,3.95462,2528.7,2528.1,7.33660457]
[1724869856591,4.05349512,2528.7,2528.2,3.95535]
[1724869856791,4.05349512,2528.7,2528.1,7.91081]
[1724869856996,4.05349512,2528.7,2528.1,5.66703046]
[1724869857209,4.05349512,2528.7,2528.2,4.0227377]
[1724869857707,3.95462,2528.7,2528.2,4.0227377]
[1724869857897,8.00818733,2528.7,2528.2,4.0227377]
[1724869858203,3.95475,2528.6,2528.2,0.0674477]
[1724869858403,4.05362728,2528.6,2528.2,0.0674477]
[1724869858797,0.09887728,2528.6,2528.2,0.0674477]
[1724869859538,0.09887728,2528.6,2528.2,4.0228077]
[1724869859700,4.05349727,2528.7,2528.2,4.99179152]
[1724869860417,8.00817727,2528.7,2528.2,4.99179152]
[1724869860627,0.09887727,2528.7,2528.2,0.0674477]
[1724869860928,7.91027,2528.4,2528.2,0.0674477]
[1724869861133,2.37688648,2528.3,2527.9,7.41]
[1724869861352,4.05430014,2528.2,2527.7,3.95607]
[1724869862102,2.473,2528.0,2527.6,7.41]
[1724869862442,3.95595,2527.9,2527.4,3.95653]
[1724869862590,3.95603,2527.8,2527.4,3.95653]
[1724869862974,2.473,2527.6,2527.3,19.59]
[1724869863132,2.473,2527.6,2527.1,7.33819457]
[1724869863305,2.473,2527.6,2526.8,8.57995826]
[1724869863510,3.95724,2527.1,2526.8,7.41]
[1724869864189,7.91447,2527.1,2526.8,7.41]
[1724869864395,3.95721,2527.1,2526.8,7.41]
[1724869864739,3.9572,2527.1,2526.8,7.41]
[1724869864889,0.09893339,2527.2,2526.8,7.41]
[1724869865095,0.09893339,2527.2,2526.8,9.764778]
[1724869865426,0.09893339,2527.2,2526.8,7.41]
[1724869865937,3.0,2528.1,2527.1,3.95706]
[1724869865938,2.3626,2527.6,2527.1,3.95706]
[1724869866143,2.4615147,2527.6,2527.2,0.55]
[1724869866429,7.4453697,2527.6,2527.0,3.95711]
[1724869866602,7.4453697,2527.6,2527.1,0.55]
[1724869867223,5.09665497,2527.5,2527.1,0.55]
[1724869868539,4.05555422,2527.4,2526.8,7.41]
[1724869868752,3.95696,2527.2,2526.8,7.41]
[1724869868955,8.01230422,2527.4,2526.8,10.49866946]
[1724869869249,3.95696,2527.2,2526.8,7.41]
[1724869869747,4.05555422,2527.4,2526.9,3.95737]
[1724869869952,8.01230422,2527.4,2526.8,11.36755]
[1724869870140,3.95697,2527.2,2526.9,0.55]
[1724869870483,6.51344854,2527.1,2526.8,7.41]
[1724869871447,2.4574,2527.1,2526.8,7.41]
[1724869871776,2.4574,2527.6,2527.0,3.95723]
[1724869871938,0.09890746,2527.9,2527.1,14.21667457]
[1724869872247,3.95619,2527.7,2527.2,0.06914893]
[1724869872549,6.45301,2527.4,2527.2,0.06914893]
[1724869872933,10.40972,2527.4,2527.2,0.06914893]
[1724869873251,10.40972,2527.4,2527.3,0.06886566]
[1724869873613,3.95681,2527.3,2526.8,14.74875457]
[1724869873918,3.95681,2527.3,2526.9,0.61932732]
[1724869874849,6.45301,2527.4,2526.9,4.57672732]
[1724869875503,10.40973,2527.4,2526.9,4.57672732]
[1724869876240,3.95718,2527.1,2526.9,0.06932732]
[1724869876453,4.36279047,2527.1,2526.9,0.06932732]
[1724869876750,10.42825296,2527.0,2526.9,0.06932732]
[1724869877245,3.95745,2526.9,2526.5,3.38121457]
[1724869877749,3.95745,2526.9,2526.5,5.25197703]
[1724869878333,6.37206,2527.0,2526.5,13.16795703]
[1724869878520,3.95702,2527.2,2526.7,3.95772]
[1724869878817,3.95702,2527.2,2526.6,4.58702403]
[1724869879425,3.95721,2527.1,2526.6,0.55]
[1724869879750,3.95733,2527.0,2526.6,0.55]
[1724869880246,4.05626387,2527.0,2526.6,0.55]
[1724869880424,3.95721,2527.1,2526.6,0.55]
[1724869880624,3.9569,2527.3,2526.7,2.4332]
[1724869880839,0.0989232,2527.4,2527.0,3.95725]
[1724869881044,3.95652,2527.5,2527.1,4.50702]
[1724869881241,3.95652,2527.5,2527.1,0.55]
[1724869881546,3.95652,2527.5,2527.0,4.50725]
[1724869881749,3.95652,2527.5,2527.0,5.7332968]
[1724869882365,3.95652,2527.5,2527.0,5.81242874]
[1724869882523,6.52745493,2527.9,2527.2,3.95687]
[1724869882724,6.42854,2527.9,2527.4,3.95662]
[1724869883037,6.42854,2527.9,2527.3,0.395687]
[1724869883257,3.95624,2527.7,2527.4,0.55]
[1724869883439,3.95624,2527.7,2527.3,0.55]
[1724869884539,3.95541,2528.2,2527.1,7.41]
[1724869884540,3.95671,2527.4,2527.1,7.41]
[1724869884854,7.91348,2527.4,2527.1,7.41]
[1724869885025,3.95671,2527.4,2527.1,7.41]
[1724869886067,3.9568,2527.3,2527.1,7.41]
[1724869886229,3.9568,2527.3,2526.8,19.13746]
[1724869886430,3.9568,2527.3,2526.8,22.02951546]
[1724869886631,3.9568,2527.3,2526.9,0.55]
[1724869886865,3.95718,2527.1,2526.8,12.18]
[1724869887476,3.95718,2527.1,2526.9,0.06932291]
[1724869888376,3.95694,2527.2,2526.9,0.06932291]
[1724869889060,3.95726,2527.0,2526.9,0.06932291]
[1724869889409,8.01346089,2527.0,2526.9,0.06932291]
[1724869889685,3.95751,2526.9,2526.4,7.33938457]
[1724869890480,3.95751,2526.9,2526.5,0.55]
[1724869890684,3.9576,2526.8,2526.5,0.55]
[1724869890987,3.9576,2526.8,2526.0,12.5771]
[1724869890988,3.95802,2526.6,2526.1,3.95866]
[1724869892969,3.95802,2526.6,2526.2,0.55]
[1724869893545,8.01466103,2526.7,2526.2,0.55]
[1724869895196,2.2856,2526.8,2526.2,0.55]
[1724869895381,2.2856,2526.8,2526.2,4.35150146]
[1724869895382,6.24327,2526.8,2526.2,4.35150146]
[1724869895585,10.20094,2526.8,2526.3,4.50834]
[1724869895890,6.24327,2526.8,2526.3,4.50834]
[1724869896103,6.24327,2526.8,2526.3,5.39432415]
[1724869896912,10.20095,2526.8,2526.3,1.43598415]
[1724869897207,10.20095,2526.8,2526.3,0.55]
[1724869897379,6.24325,2526.8,2526.0,3.38121457]
[1724869897591,6.24325,2526.8,2526.1,3.55]
[1724869897592,3.95806,2526.5,2526.1,3.55]
[1724869899010,3.95832,2526.4,2526.1,3.55]
[1724869899172,3.95804,2526.5,2526.1,0.55]
[1724869899821,3.95862,2526.2,2525.9,7.41]
[1724869900115,0.80148479,2526.5,2525.6,19.59]
[1724869900116,2.4832,2525.9,2525.6,19.59]
[1724869900273,2.4832,2525.9,2525.2,1.24569524]
[1724869900274,0.09898527,2525.8,2525.2,1.24569524]
[1724869900471,8.01743527,2525.8,2525.2,5.20573524]
[1724869900694,4.05820527,2525.8,2525.3,1.43408336]
[1724869901282,4.05820527,2525.8,2525.3,0.60361987]
[1724869901703,4.05820527,2525.8,2525.3,4.56349987]
[1724869901908,3.95922,2525.8,2525.3,4.56349987]
[1724869902307,3.95922,2525.8,2525.4,0.06508179]
[1724869902505,3.95856,2526.2,2525.5,0.55]
[1724869902711,2.4832,2526.2,2525.7,3.95928]
[1724869902894,2.4832,2526.2,2525.8,4.50905]
[1724869903120,6.3525053,2526.5,2525.9,3.95888]
[1724869903294,2.2954,2526.5,2526.0,4.50871]
[1724869903500,2.2954,2526.5,2526.1,0.78899246]
[1724869903888,6.25306,2526.8,2526.2,0.14330623]
[1724869904091,2.2954,2526.8,2526.3,4.50827]
[1724869904314,6.253,2526.8,2526.3,4.50825]
[1724869904499,6.253,2526.8,2526.4,0.06374563]
[1724869904707,0.0989496,2526.9,2526.4,4.02194563]
[1724869905015,4.0564596,2526.9,2526.4,0.06374563]
[1724869905819,3.95728,2527.0,2526.4,0.06374563]
[1724869905820,2.2954,2527.1,2526.6,3.95777]
[1724869906016,6.35144488,2527.1,2526.7,0.06326248]
[1724869906221,6.35144488,2527.1,2526.5,3.95794]
[1724869906380,6.35144488,2527.1,2526.6,1.40011904]
[1724869907221,3.95731,2527.0,2526.6,0.61336471]
[1724869907425,6.25251,2527.1,2526.6,0.61336471]
[1724869907604,2.2954,2527.1,2526.6,0.61336471]
[1724869907795,0.09893344,2527.2,2526.7,3.95763]
[1724869907995,6.25228,2527.3,2526.8,0.06303237]
[1724869908292,6.25228,2527.3,2526.7,3.95763]
[1724869908618,6.25228,2527.3,2526.8,4.57064411]
[1724869908822,0.09893001,2527.2,2526.8,0.61309411]
[1724869909192,4.05589001,2527.2,2526.8,0.61309411]
[1724869909384,3.95712,2527.1,2526.8,0.61309411]
[1724869910096,3.95741,2526.9,2526.8,0.06309411]
[1724869910310,6.25281,2526.9,2526.8,0.06309411]
[1724869910621,6.25281,2526.9,2526.8,0.0630897]
[1724869910821,6.25281,2526.9,2526.4,3.95819]
[1724869911025,6.25281,2526.9,2526.5,4.57147607]
[1724869911383,3.95712,2527.1,2526.5,8.52943607]
[1724869911581,3.95712,2527.1,2526.6,3.95784]
[1724869911793,3.95712,2527.1,2526.7,0.61320515]
[1724869912690,2.2954,2527.4,2526.8,0.07914757]
[1724869913046,3.95681,2527.3,2526.9,0.06281107]
[1724869913193,3.95681,2527.3,2526.7,8.46525]
[1724869913392,3.95681,2527.3,2526.8,4.02042036]
[1724869914709,6.35098696,2527.4,2526.9,3.95741]
[1724869914939,6.35098696,2527.4,2526.9,4.81020704]
[1724869915245,6.35098696,2527.4,2527.0,0.06259422]
[1724869915398,3.95679,2527.3,2527.0,0.06259422]
[1724869917397,3.95656,2527.5,2527.0,0.06259422]
[1724869917597,4.05548305,2527.5,2527.0,0.06259422]
[1724869917798,3.95656,2527.5,2527.0,4.01983422]
[1724869918197,3.95656,2527.5,2527.0,4.82546049]
[1724869918744,0.09892111,2527.4,2527.0,0.86822049]
[1724869919037,3.95671,2527.4,2527.0,0.06259422]
[1724869919227,3.95683,2527.3,2527.0,0.06259422]
[1724869919431,2.2954,2527.1,2526.7,0.55]
[1724869919618,6.25258,2527.1,2526.8,0.06276777]
[1724869919938,6.25258,2527.1,2526.6,4.50778]
[1724869919939,0.09892324,2527.2,2526.7,3.95769]
[1724869920110,0.09892324,2527.2,2526.9,0.06265233]
[1724869920438,0.09892324,2527.2,2527.0,0.0625369]
[1724869920755,3.9565,2527.5,2527.0,0.0625369]